fUST/lending_fUST_20250614
["ID","MTS","AMOUNT","RATE_DAILY","PERIOD"]
[365713098,1749843040111,-2007.32,0.00023013,4]
[365713100,1749843040120,-695.8,0.00023013,4]
[365713102,1749843040130,-460.0,0.00023013,4]
[365713104,1749843040139,-1352.08808393,0.00023038,8]
[365713106,1749843040148,-188.94323587,0.00023113,2]
[365713123,1749843040301,-1352.08808393,0.00023141,8]
[365713126,1749843040315,-500.0,0.00023173,2]
[365713128,1749843040325,-500.0,0.00023173,2]
[365713130,1749843040336,-500.0,0.00023173,2]
[365713132,1749843040345,-500.0,0.00023173,2]
[365713134,1749843040355,-1352.08808393,0.00023245,8]
[365713136,1749843040364,-500.0,0.00023275,2]
[365713138,1749843040374,-310.26841365,0.00023275,2]
[365713140,1749843040384,-500.0,0.00023285,4]
[365713142,1749843040394,-547.06,0.00023287,2]
[365713144,1749843040403,-460.0,0.00023287,4]
[365713146,1749843040413,-717.83,0.00023287,4]
[365713148,1749843040423,-728.37,0.00023287,4]
[365713150,1749843040432,-460.0,0.00023287,4]
[365713152,1749843040446,-460.0,0.00023287,4]
[365713154,1749843040456,-460.0,0.00023287,4]
[365713156,1749843040466,-552.48,0.00023287,4]
[365713158,1749843040476,-1142.79,0.00023287,4]
[365713160,1749843040487,-2007.32,0.00023287,4]
[365713162,1749843040496,-695.8,0.00023287,4]
[365713164,1749843040506,-460.0,0.00023287,4]
[365713166,1749843040517,-151.0,0.000233,10]
[365713168,1749843040527,-157881.19,0.000233,7]
[365713169,1749843040536,-4073.10887882,0.00023328,2]
[365713170,1749843040546,-1352.08808393,0.00023348,9]
[365713171,1749843040556,-5000.0,0.00023392,2]
[365713172,1749843040566,-350.66290888,0.00023402,2]
[365713173,1749843040575,-166.50369972,0.00023425,2]
[365713174,1749843040589,-1352.08808393,0.00023452,9]
[365713175,1749843040599,-500.0,0.00023471,2]
[365713176,1749843040609,-500.0,0.00023492,2]
[365713177,1749843040619,-1005.00855098,0.00023498,2]
[365713178,1749843040628,-500.0,0.00023498,2]
[365713179,1749843040638,-151.0,0.000235,8]
[365713180,1749843040647,-188.94323587,0.00023545,2]
[365713181,1749843040656,-1352.08808393,0.00023555,9]
[365713182,1749843040666,-460.0,0.00023561,4]
[365713183,1749843040676,-717.83,0.00023561,4]
[365713184,1749843040686,-728.37,0.00023561,4]
[365713185,1749843040695,-460.0,0.00023561,4]
[365713186,1749843040705,-370.12,0.00023561,4]
[365713187,1749843040714,-460.0,0.00023561,4]
[365713188,1749843040724,-552.48,0.00023561,4]
[365713189,1749843040733,-1142.79,0.00023561,4]
[365713190,1749843040742,-2007.32,0.00023561,4]
[365713191,1749843040751,-695.8,0.00023561,4]
[365713192,1749843040761,-460.0,0.00023561,4]
[365713193,1749843040770,-500.0,0.00023575,2]
[365713194,1749843040780,-227.42880251,0.00023575,2]
[365713195,1749843040789,-304.63792749,0.00023575,2]
[365713196,1749843040799,-22385.36445277,0.00023613,7]
[365713197,1749843040808,-500.0,0.00023658,4]
[365713198,1749843040817,-1352.08808393,0.00023659,9]
[365713199,1749843040826,-500.48958838,0.00023675,2]
[365713200,1749843040838,-503.00566977,0.00023675,2]
[365713201,1749843040847,-500.0,0.00023675,2]
[365713202,1749843040858,-173.9379647,0.0002368,4]
[365713203,1749843040867,-173.9379647,0.0002368,4]
[365713204,1749843040877,-173.9379647,0.0002368,4]
[365713205,1749843040886,-173.93,0.0002368,4]
[365713206,1749843040895,-162.34210038,0.0002368,4]
[365713207,1749843040904,-162.34210038,0.0002368,4]
[365713208,1749843040913,-162.34210038,0.0002368,4]
[365713209,1749843040923,-162.34210038,0.0002368,4]
[365713210,1749843040933,-162.34210038,0.0002368,4]
[365713211,1749843040942,-162.34210038,0.0002368,4]
[365713212,1749843040951,-162.34210038,0.0002368,4]
[365713213,1749843040962,-162.34210038,0.0002368,4]
[365713214,1749843040971,-162.34210038,0.0002368,4]
[365713215,1749843040981,-153.0,0.00023685,2]
[365713216,1749843040990,-43757.3213423,0.000237,7]
[365713217,1749843040999,-162.34,0.000237,4]
[365713218,1749843041008,-1000.0,0.00023721,2]
[365713219,1749843041017,-1000.0,0.00023721,2]
[365713220,1749843041027,-1000.0,0.00023721,2]
[365713221,1749843041037,-1000.0,0.00023721,2]
[365713222,1749843041046,-166.50369972,0.00023726,2]
[365713223,1749843041055,-1352.08808393,0.00023762,9]
[365713224,1749843041065,-500.0,0.00023773,2]
[365713225,1749843041074,-500.0,0.00023773,2]
[365713226,1749843041086,-503.41766689,0.00023773,2]
[365713227,1749843041094,-500.0,0.00023773,2]
[365713228,1749843041104,-500.0,0.00023773,2]
[365713229,1749843041113,-500.0,0.00023773,2]
[365713230,1749843041123,-220.41741011,0.00023773,2]
[365713231,1749843041133,-240.58970932,0.00023773,2]
[365713232,1749843041142,-500.0,0.00023773,2]
[365713233,1749843041151,-500.0,0.00023773,2]
[365713234,1749843041161,-500.0,0.00023773,2]
[365713235,1749843041170,-500.42355388,0.00023773,2]
[365713236,1749843041180,-600.0,0.00023773,2]
[365713237,1749843041189,-8751.62747895,0.0002378,2]
[365713238,1749843041199,-6154.89478925,0.0002378,2]
[365713239,1749843041209,-601.72777977,0.0002378,2]
[365713240,1749843041218,-432517.28441991,0.0002378,5]
[365713259,1749843042955,-405.85505581,0.0002378,5]
[365713261,1749843043050,-589.97,0.00021095,4]
[365713262,1749843043060,-460.0,0.00021643,4]
[365713263,1749843043071,-66.81952249,0.00021643,4]
[365713264,1749843043177,-46.96167934,0.00021643,4]
[365713266,1749843043316,-346.21879817,0.00021643,4]
[365713267,1749843043326,-460.0,0.00021917,4]
[365713268,1749843043336,-293.78120183,0.00021917,4]
[365713276,1749843047166,-460.0,0.00021095,4]
[365713277,1749843047176,-166.21879817,0.00021917,4]
[365713278,1749843047185,-4339.59,0.00022,7]
[365713279,1749843047195,-460.0,0.00022191,4]
[365713280,1749843047204,-460.0,0.00022191,4]
[365713281,1749843047213,-460.0,0.00022465,4]
[365713282,1749843047223,-460.0,0.00022465,4]
[365713283,1749843047232,-460.0,0.00022739,4]
[365713284,1749843047241,-460.0,0.00022739,4]
[365713285,1749843047250,-1841.8934557,0.00023,7]
[365713290,1749843444497,-285.19929943,0.00020255,2]
[365713291,1749843504922,-309.45334445,0.00020121,2]
[365713292,1749843513985,-222.25790411,0.0001992,2]
[365713293,1749843558113,-87.19544034,0.0001992,2]
[365713294,1749843645036,-17812.0,0.0002007,2]
[365713296,1749844028038,-1676.0914734,0.0002007,2]
[365713297,1749844028059,-135.25100365,0.00020121,2]
[365713298,1749844028080,-912.14155925,0.00020255,2]
[365713299,1749844030098,-1535.82077122,0.00020255,2]
[365713300,1749844030122,-177.831984,0.00020529,2]
[365713301,1749844030143,-211.69068759,0.00021073,2]
[365713302,1749844030163,-524.41512156,0.00021083,2]
[365713303,1749844030184,-413.46439249,0.00021085,2]
[365713304,1749844030204,-300.0,0.00021093,2]
[365713305,1749844030224,-300.0,0.00021093,2]
[365713306,1749844030244,-500.0,0.00021094,2]
[365713307,1749844030264,-231.534,0.00021094,2]
[365713308,1749844030285,-300.0,0.00021094,2]
[365713309,1749844030304,-396.19836587,0.00021095,4]
[365713310,1749844030324,-460.0,0.00021095,4]
[365713311,1749844030344,-411.91899273,0.00021095,4]
[365713312,1749844030363,-460.0,0.00021095,4]
[365713313,1749844030382,-430.0,0.00021095,4]
[365713314,1749844030401,-440.0,0.00021095,4]
[365713315,1749844030421,-460.0,0.00021095,4]
[365713316,1749844030441,-406.34911925,0.00021095,4]
[365713317,1749844030460,-440.0,0.00021095,4]
[365713318,1749844030479,-400.92573595,0.00021095,4]
[365713319,1749844030499,-157.75692255,0.00021095,4]
[365713320,1749844030519,-198.89472786,0.00021095,4]
[365713321,1749844030538,-431.57976101,0.00021095,4]
[365713322,1749844030558,-460.0,0.00021095,4]
[365713323,1749844030578,-152.97089213,0.00021095,4]
[365713324,1749844030599,-236.86817698,0.00021095,4]
[365713325,1749844030652,-204.61669115,0.00021095,4]
[365713326,1749844030673,-460.0,0.00021095,4]
[365713327,1749844030694,-432.99178427,0.00021095,4]
[365713328,1749844030714,-460.0,0.00021095,4]
[365713329,1749844030733,-460.0,0.00021095,4]
[365713330,1749844030754,-440.0,0.00021095,4]
[365713331,1749844030774,-441.64556602,0.00021095,4]
[365713332,1749844030796,-460.0,0.00021095,4]
[365713333,1749844030820,-431.55264364,0.00021095,4]
[365713334,1749844030840,-432.60842759,0.00021095,4]
[365713335,1749844030863,-460.0,0.00021095,4]
[365713336,1749844030888,-460.0,0.00021095,4]
[365713337,1749844030909,-460.0,0.00021095,4]
[365713338,1749844030930,-460.0,0.00021095,4]
[365713339,1749844030949,-189.31904658,0.00021095,4]
[365713340,1749844030971,-460.0,0.00021095,4]
[365713341,1749844030991,-460.0,0.00021095,4]
[365713342,1749844031012,-460.0,0.00021095,4]
[365713343,1749844031032,-430.0,0.00021095,4]
[365713344,1749844031052,-508.48115653,0.00021095,4]
[365713345,1749844031072,-430.0,0.00021095,4]
[365713346,1749844031092,-430.0,0.00021095,4]
[365713347,1749844031228,-440.0,0.00021095,4]
[365713348,1749844031249,-440.0,0.00021095,4]
[365713349,1749844031270,-512.61918382,0.00021095,4]
[365713350,1749844031290,-193.18653969,0.00021095,4]
[365713351,1749844031311,-460.0,0.00021095,4]
[365713352,1749844031331,-430.0,0.00021095,4]
[365713353,1749844031352,-460.0,0.00021095,4]
[365713354,1749844031372,-440.0,0.00021095,4]
[365713355,1749844031392,-274.86729303,0.00021095,4]
[365713356,1749844031412,-500.0,0.00021095,4]
[365713357,1749844031434,-460.0,0.00021095,4]
[365713358,1749844031453,-460.0,0.00021095,4]
[365713359,1749844031474,-460.0,0.00021095,4]
[365713360,1749844031494,-460.0,0.00021095,4]
[365713361,1749844031513,-419.84969821,0.00021095,4]
[365713362,1749844031534,-460.0,0.00021095,4]
[365713363,1749844031555,-460.0,0.00021095,4]
[365713364,1749844031576,-430.0,0.00021095,4]
[365713365,1749844031596,-400.0,0.00021095,4]
[365713366,1749844031616,-400.0,0.00021095,4]
[365713367,1749844031637,-460.0,0.00021095,4]
[365713368,1749844031657,-437.64617155,0.00021095,4]
[365713369,1749844031678,-380.0,0.00021095,4]
[365713370,1749844031699,-460.0,0.00021095,4]
[365713371,1749844031721,-460.0,0.00021095,4]
[365713372,1749844031743,-420.0,0.00021095,4]
[365713373,1749844031767,-1054.8,0.00021095,4]
[365713374,1749844031789,-460.0,0.00021095,4]
[365713375,1749844031814,-460.0,0.00021095,4]
[365713376,1749844031836,-460.0,0.00021095,4]
[365713377,1749844031862,-460.0,0.00021095,4]
[365713378,1749844031886,-440.0,0.00021095,4]
[365713379,1749844031908,-460.0,0.00021095,4]
[365713380,1749844031929,-460.0,0.00021095,4]
[365713381,1749844031950,-460.0,0.00021095,4]
[365713382,1749844031972,-626.4789578,0.00021095,4]
[365713383,1749844031992,-460.0,0.00021095,4]
[365713384,1749844032012,-440.0,0.00021095,4]
[365713385,1749844032032,-430.0,0.00021095,4]
[365713386,1749844032052,-440.0,0.00021095,4]
[365713387,1749844032073,-460.0,0.00021095,4]
[365713388,1749844032095,-460.0,0.00021095,4]
[365713389,1749844032115,-430.0,0.00021095,4]
[365713390,1749844032157,-460.0,0.00021095,4]
[365713391,1749844032201,-460.0,0.00021095,4]
[365713392,1749844032221,-448.1044883,0.00021095,4]
[365713393,1749844032242,-346.62810943,0.00021095,4]
[365713394,1749844032262,-460.0,0.00021095,4]
[365713395,1749844032281,-460.0,0.00021095,4]
[365713396,1749844032302,-460.0,0.00021095,4]
[365713397,1749844032323,-450.0,0.00021095,4]
[365713398,1749844032345,-460.0,0.00021095,4]
[365713399,1749844032367,-460.0,0.00021095,4]
[365713400,1749844032388,-460.0,0.00021095,2]
[365713401,1749844032409,-460.0,0.00021095,4]
[365713402,1749844032431,-460.0,0.00021095,4]
[365713403,1749844032453,-460.0,0.00021095,4]
[365713404,1749844032475,-460.0,0.00021095,4]
[365713405,1749844032496,-420.0,0.00021095,4]
[365713406,1749844032517,-460.0,0.00021095,4]
[365713407,1749844032539,-423.4845344,0.00021095,4]
[365713408,1749844032559,-326.99122783,0.00021095,4]
[365713409,1749844032581,-460.0,0.00021095,4]
[365713410,1749844032604,-460.0,0.00021095,4]
[365713411,1749844032626,-460.0,0.00021095,4]
[365713412,1749844032647,-460.0,0.00021095,4]
[365713413,1749844032669,-460.0,0.00021095,4]
[365713414,1749844032692,-460.0,0.00021095,4]
[365713415,1749844032715,-460.0,0.00021095,4]
[365713416,1749844032738,-460.0,0.00021095,4]
[365713417,1749844032759,-430.0,0.00021095,4]
[365713418,1749844032781,-430.0,0.00021095,2]
[365713419,1749844032806,-460.0,0.00021095,4]
[365713420,1749844032827,-400.0,0.00021095,4]
[365713421,1749844032849,-985.45,0.00021095,4]
[365713422,1749844032870,-985.45,0.00021095,4]
[365713423,1749844032892,-985.45,0.00021095,4]
[365713424,1749844032913,-985.45,0.00021095,4]
[365713425,1749844032935,-460.0,0.00021095,4]
[365713426,1749844032956,-985.45,0.00021095,4]
[365713427,1749844032977,-985.45,0.00021095,4]
[365713428,1749844032998,-985.45,0.00021095,4]
[365713429,1749844033018,-430.0,0.00021095,4]
[365713430,1749844033038,-431.95194978,0.00021095,4]
[365713431,1749844033059,-500.0,0.00021095,4]
[365713432,1749844033079,-500.0,0.00021095,4]
[365713433,1749844033100,-397.10405973,0.00021095,4]
[365713434,1749844033121,-460.0,0.00021095,4]
[365713435,1749844033142,-758.74,0.00021095,4]
[365713436,1749844033163,-430.0,0.00021095,4]
[365713437,1749844033184,-460.0,0.00021095,4]
[365713438,1749844033204,-440.0,0.00021095,4]
[365713439,1749844033224,-460.0,0.00021095,4]
[365713440,1749844033245,-88.12740117,0.00021095,4]
[365713441,1749844039910,500.0,0.00024658,120]
[365713442,1749844053872,501.0,0.00024658,120]
[365713443,1749844054065,2408.0,0.00024658,120]
[365713444,1749844065860,502.0,0.00024658,120]
[365713445,1749844077103,503.0,0.00024658,120]
[365713446,1749844097249,537.0,0.00024658,120]
[365713447,1749844126612,720.25720017,0.00018995,2]
[365713448,1749844149082,-300.0,0.00021094,2]
[365713449,1749844149105,-460.0,0.00021095,4]
[365713450,1749844149127,-460.0,0.00021095,4]
[365713451,1749844149146,-460.0,0.00021095,4]
[365713452,1749844149167,-460.0,0.00021095,4]
[365713453,1749844149189,-460.0,0.00021095,4]
[365713454,1749844149210,-430.0,0.00021095,4]
[365713455,1749844149231,-460.0,0.00021095,4]
[365713456,1749844149253,-430.0,0.00021095,4]
[365713457,1749844149277,-460.0,0.00021095,4]
[365713458,1749844149297,-410.0,0.00021095,4]
[365713459,1749844149320,-460.0,0.00021095,4]
[365713460,1749844149341,-460.0,0.00021095,4]
[365713461,1749844149362,-430.9967078,0.00021095,4]
[365713462,1749844149383,-460.0,0.00021095,4]
[365713463,1749844149403,-460.0,0.00021095,4]
[365713464,1749844149425,-460.0,0.00021095,4]
[365713465,1749844149445,-430.0,0.00021095,4]
[365713466,1749844149464,-430.0,0.00021095,4]
[365713467,1749844149488,-910.13,0.00021095,4]
[365713468,1749844149512,-3190.47,0.00021095,4]
[365713469,1749844149534,-460.0,0.00021095,4]
[365713470,1749844149554,-460.0,0.00021095,4]
[365713471,1749844149576,-500.0,0.00021095,4]
[365713472,1749844149597,-500.0,0.00021095,4]
[365713473,1749844149618,-460.0,0.00021095,4]
[365713474,1749844149639,-410.0,0.00021095,4]
[365713475,1749844149661,-460.0,0.00021095,4]
[365713476,1749844149685,-472.6,0.00021095,4]
[365713477,1749844149710,-634.14,0.00021095,4]
[365713478,1749844149731,-430.0,0.00021095,4]
[365713479,1749844149755,-460.0,0.00021095,4]
[365713480,1749844149782,-460.0,0.00021095,4]
[365713481,1749844149805,-460.0,0.00021095,4]
[365713482,1749844149828,-460.0,0.00021095,4]
[365713483,1749844149853,-460.0,0.00021095,4]
[365713484,1749844149875,-420.0,0.00021095,4]
[365713485,1749844149899,-225.66794397,0.00021095,4]
[365713486,1749844150135,-234.33205603,0.00021095,4]
[365713487,1749844150155,-460.0,0.00021095,4]
[365713488,1749844150173,-223.91274033,0.00021095,4]
[365713489,1749844150193,-460.0,0.00021095,4]
[365713490,1749844150215,-487.34,0.00021095,4]
[365713491,1749844150234,-460.0,0.00021095,4]
[365713492,1749844150256,-460.0,0.00021095,4]
[365713493,1749844150281,-1267.0,0.00021095,4]
[365713494,1749844150302,-460.0,0.00021095,4]
[365713495,1749844150322,-460.0,0.00021095,4]
[365713496,1749844150342,-440.0,0.00021095,4]
[365713497,1749844150361,-460.0,0.00021095,4]
[365713498,1749844150383,-460.0,0.00021095,4]
[365713499,1749844150403,-580.0,0.00021095,4]
[365713500,1749844150425,-460.0,0.00021095,4]
[365713501,1749844150445,-460.0,0.00021095,4]
[365713502,1749844150466,-460.0,0.00021095,4]
[365713503,1749844150486,-194.22795194,0.00021095,4]
[365713504,1749844171131,-265.77204806,0.00021095,4]
[365713505,1749844171152,-460.0,0.00021095,4]
[365713506,1749844171174,-460.0,0.00021095,4]
[365713507,1749844171197,-374.13695304,0.00021095,4]
[365713544,1749844232593,-300.0,0.00021094,2]
[365713545,1749844232604,-1195.0,0.00021094,2]
[365713546,1749844232614,-300.0,0.00021094,2]
[365713547,1749844232624,-85.86304696,0.00021095,4]
[365713548,1749844232633,-231.8659061,0.00021095,4]
[365713549,1749844232650,-228.1340939,0.00021095,4]
[365713551,1749844232660,-460.0,0.00021095,4]
[365713553,1749844232668,-460.0,0.00021095,4]
[365713555,1749844232678,-460.0,0.00021095,4]
[365713557,1749844232688,-460.0,0.00021095,4]
[365713559,1749844232697,-460.0,0.00021095,4]
[365713561,1749844232707,-460.0,0.00021095,4]
[365713563,1749844232717,-460.0,0.00021095,4]
[365713565,1749844232726,-460.0,0.00021095,4]
[365713566,1749844232735,-460.0,0.00021095,4]
[365713567,1749844232747,-449.89230403,0.00021095,4]
[365713603,1749844238426,-10.10769597,0.00021095,4]
[365713605,1749844238436,-460.0,0.00021095,4]
[365713607,1749844238447,-280.0,0.00021095,4]
[365713609,1749844238457,-460.0,0.00021095,4]
[365713611,1749844238466,-460.0,0.00021095,4]
[365713613,1749844238476,-460.0,0.00021095,4]
[365713615,1749844238485,-460.0,0.00021095,4]
[365713617,1749844238495,-260.0,0.00021095,4]
[365713619,1749844238503,-813.82,0.00021095,4]
[365713621,1749844238513,-460.0,0.00021095,4]
[365713623,1749844238522,-460.0,0.00021095,4]
[365713625,1749844238532,-460.0,0.00021095,4]
[365713627,1749844238541,-428.20342332,0.00021095,4]
[365713629,1749844238551,-460.0,0.00021095,4]
[365713631,1749844238560,-460.0,0.00021095,4]
[365713633,1749844238571,-460.0,0.00021095,4]
[365713635,1749844238580,-818.62,0.00021095,4]
[365713638,1749844238590,-460.0,0.00021095,4]
[365713640,1749844238599,-434.50177791,0.00021095,4]
[365713641,1749844238608,-337.26472492,0.00021095,4]
[365713642,1749844238618,-460.0,0.00021095,4]
[365713643,1749844238628,-460.0,0.00021095,4]
[365713644,1749844238637,-442.04684927,0.00021095,4]
[365713645,1749844238647,-460.0,0.00021095,4]
[365713646,1749844238656,-460.0,0.00021095,4]
[365713647,1749844238665,-1158.1,0.00021095,4]
[365713648,1749844238674,-460.0,0.00021095,4]
[365713649,1749844238684,-3468.8,0.00021095,4]
[365713650,1749844238694,-460.0,0.00021095,4]
[365713651,1749844238704,-460.0,0.00021095,4]
[365713652,1749844238714,-210.0,0.00021095,4]
[365713653,1749844238723,-430.0,0.00021095,4]
[365713654,1749844238733,-460.0,0.00021095,4]
[365713655,1749844238742,-460.0,0.00021095,4]
[365713656,1749844238752,-626.88,0.00021095,4]
[365713657,1749844238762,-460.0,0.00021095,4]
[365713658,1749844238772,-420.0,0.00021095,4]
[365713659,1749844238781,-1528.91,0.00021095,4]
[365713660,1749844238791,-658.05,0.00021095,4]
[365713661,1749844238800,-460.0,0.00021095,4]
[365713662,1749844238810,-460.0,0.00021095,4]
[365713663,1749844238819,-460.0,0.00021095,4]
[365713664,1749844238829,-460.0,0.00021095,4]
[365713665,1749844238838,-465.39748592,0.00021095,4]
[365713666,1749844238848,-460.0,0.00021095,4]
[365713667,1749844238859,-460.0,0.00021095,4]
[365713668,1749844238870,-460.0,0.00021095,4]
[365713669,1749844238880,-460.0,0.00021095,4]
[365713670,1749844238889,-460.0,0.00021095,4]
[365713671,1749844238899,-440.0,0.00021095,4]
[365713672,1749844238908,-407.35470996,0.00021095,4]
[365713673,1749844238917,-460.0,0.00021095,4]
[365713674,1749844238926,-460.0,0.00021095,4]
[365713675,1749844238937,-375.91141148,0.00021095,4]
[365713676,1749844238947,-462.51542571,0.00021095,4]
[365713677,1749844238956,-500.0,0.00021095,4]
[365713678,1749844238965,-500.0,0.00021095,4]
[365713679,1749844238975,-500.0,0.00021095,4]
[365713680,1749844238984,-460.0,0.00021095,4]
[365713681,1749844238994,-429.41446954,0.00021095,4]
[365713682,1749844239003,-416.9858036,0.00021095,4]
[365713683,1749844239012,-460.0,0.00021095,4]
[365713684,1749844239021,-1098.25552134,0.00021365,2]
[365713685,1749844239030,-985.45,0.00021367,4]
[365713686,1749844239042,-985.45,0.00021367,4]
[365713687,1749844239051,-500.0,0.00021367,4]
[365713688,1749844239059,-500.0,0.00021367,4]
[365713689,1749844239070,-460.0,0.00021368,4]
[365713690,1749844239079,-430.0,0.00021368,4]
[365713691,1749844239088,-440.0,0.00021368,4]
[365713692,1749844239098,-440.0,0.00021368,4]
[365713694,1749844239107,-401.77808143,0.00021368,4]
[365713696,1749844239117,-440.0,0.00021368,4]
[365713698,1749844239126,-383.82908698,0.00021368,4]
[365713699,1749844239135,-430.0,0.00021368,4]
[365713700,1749844239144,-460.0,0.00021368,4]
[365713701,1749844239154,-460.0,0.00021368,4]
[365713702,1749844239163,-432.80066593,0.00021368,4]
[365713703,1749844239172,-403.79112383,0.00021368,4]
[365713704,1749844239181,-460.0,0.00021368,4]
[365713705,1749844239190,-436.32333712,0.00021368,4]
[365713706,1749844239199,-460.0,0.00021368,4]
[365713707,1749844239208,-453.26562255,0.00021368,4]
[365713708,1749844239217,-460.0,0.00021368,4]
[365713709,1749844239226,-431.89094193,0.00021368,4]
[365713710,1749844239236,-440.0,0.00021368,4]
[365713711,1749844239245,-985.45,0.00021368,4]
[365713712,1749844239254,-460.0,0.00021368,4]
[365713713,1749844239263,-430.0,0.00021368,4]
[365713714,1749844239273,-464.7,0.00021368,4]
[365713715,1749844239282,-460.0,0.00021368,4]
[365713716,1749844239291,-440.0,0.00021368,4]
[365713717,1749844239301,-460.0,0.00021368,4]
[365713718,1749844239310,-500.0,0.00021368,4]
[365713719,1749844239320,-430.0,0.00021368,4]
[365713720,1749844239330,-470.0,0.00021368,4]
[365713721,1749844239339,-460.0,0.00021368,4]
[365713722,1749844239348,-374.55946187,0.00021368,4]
[365713723,1749844239358,-453.19006864,0.00021368,4]
[365713724,1749844239367,-460.0,0.00021368,4]
[365713725,1749844239375,-460.0,0.00021368,4]
[365713726,1749844239386,-440.0,0.00021368,4]
[365713727,1749844239395,-370.26,0.00021368,4]
[365713728,1749844239404,-455.94,0.00021368,4]
[365713729,1749844239414,-420.0,0.00021369,4]
[365713730,1749844239423,-460.0,0.00021369,4]
[365713731,1749844239433,-460.0,0.00021369,4]
[365713732,1749844239442,-440.0,0.00021369,4]
[365713733,1749844239451,-440.0,0.00021369,4]
[365713734,1749844239460,-370.0,0.00021369,4]
[365713735,1749844239469,-460.0,0.00021369,4]
[365713736,1749844239479,-460.0,0.00021369,4]
[365713737,1749844239488,-460.0,0.00021369,4]
[365713738,1749844239497,-283.0,0.00021369,4]
[365713739,1749844239507,-410.0,0.00021369,4]
[365713740,1749844239517,-460.0,0.00021369,4]
[365713741,1749844239526,-430.0,0.00021369,4]
[365713742,1749844239535,-460.0,0.00021369,4]
[365713743,1749844239544,-460.0,0.00021369,2]
[365713744,1749844239553,-460.0,0.00021369,4]
[365713745,1749844239562,-460.0,0.00021369,4]
[365713746,1749844239573,-460.0,0.00021369,4]
[365713747,1749844239582,-460.0,0.00021369,4]
[365713748,1749844239592,-460.0,0.00021369,4]
[365713749,1749844239601,-320.0,0.00021369,4]
[365713750,1749844239610,-460.0,0.00021369,4]
[365713751,1749844239620,-460.0,0.00021369,4]
[365713752,1749844239630,-487.34,0.00021369,4]
[365713753,1749844239639,-460.0,0.00021369,4]
[365713754,1749844239648,-460.0,0.00021369,4]
[365713755,1749844239657,-1267.0,0.00021369,4]
[365713756,1749844239667,-460.0,0.00021369,4]
[365713757,1749844239675,-460.0,0.00021369,4]
[365713758,1749844239685,-460.0,0.00021369,4]
[365713759,1749844239695,-460.0,0.00021369,4]
[365713760,1749844239704,-460.0,0.00021369,4]
[365713761,1749844239713,-460.0,0.00021369,4]
[365713762,1749844239724,-460.0,0.00021369,4]
[365713763,1749844239733,-440.0,0.00021369,4]
[365713764,1749844239743,-460.0,0.00021369,4]
[365713765,1749844239752,-432.28,0.00021369,4]
[365713766,1749844239762,-460.0,0.00021369,4]
[365713767,1749844239772,-460.0,0.00021369,4]
[365713768,1749844239781,-460.0,0.00021369,4]
[365713769,1749844239791,-460.0,0.00021369,4]
[365713770,1749844239800,-813.82,0.00021369,4]
[365713771,1749844239809,-460.0,0.00021369,4]
[365713772,1749844239820,-460.0,0.00021369,4]
[365713773,1749844239830,-460.0,0.00021369,4]